fUSD/lending_fUSD_20240915
["ID","MTS","AMOUNT","RATE_DAILY","PERIOD"]
[338207102,1726385467156,-596.13473687,0.00013535,2]
[338207103,1726385467166,-500.0,0.00013535,2]
[338207104,1726385467176,-556.54473639,0.00013535,2]
[338207105,1726385467187,-500.0,0.00013535,2]
[338207106,1726385467197,-612.16,0.00013535,2]
[338207107,1726385467208,-510.37,0.00013535,2]
[338207108,1726385467218,-500.0,0.00013535,2]
[338207109,1726385467229,-605.63,0.00013535,2]
[338207110,1726385467239,-702.99,0.00013535,2]
[338207111,1726385467250,-500.0,0.00013535,2]
[338207112,1726385467260,-500.0,0.00013535,2]
[338207113,1726385467271,-300.0,0.00013535,2]
[338207114,1726385467282,-500.0,0.00013535,2]
[338207115,1726385467292,-500.0,0.00013535,2]
[338207116,1726385467302,-997.16,0.00013535,2]
[338207117,1726385467313,-617.55,0.00013535,2]
[338207118,1726385467323,-500.0,0.00013535,2]
[338207119,1726385467334,-500.0,0.00013535,2]
[338207120,1726385467343,-534.65,0.00013535,2]
[338207121,1726385467353,-1531.06,0.00013535,2]
[338207122,1726385467363,-559.26353716,0.00013535,2]
[338207123,1726385467373,-500.0,0.00013535,2]
[338207124,1726385467384,-500.0,0.00013535,2]
[338207125,1726385467394,-1275.65,0.00013535,2]
[338207126,1726385467405,-500.0,0.00013535,2]
[338207127,1726385467415,-500.0,0.00013535,2]
[338207128,1726385467426,-1132.87,0.00013535,2]
[338207129,1726385467436,-1641.72,0.00013535,2]
[338207130,1726385467447,-500.0,0.00013535,2]
[338207131,1726385467457,-962.74,0.00013535,2]
[338207132,1726385467467,-642.27,0.00013535,2]
[338207133,1726385467477,-500.0,0.00013535,2]
[338207134,1726385467487,-500.0,0.00013535,2]
[338207135,1726385467497,-560.76,0.00013535,2]
[338207136,1726385467507,-440.53656818,0.00013535,2]
[338207137,1726385467518,-551.4,0.00013535,2]
[338207138,1726385467528,-500.0,0.00013535,2]
[338207139,1726385467539,-500.0,0.00013535,2]
[338207140,1726385467549,-966.26,0.00013535,2]
[338207141,1726385467559,-553.51,0.00013535,2]
[338207142,1726385467569,-500.0,0.00013535,2]
[338207143,1726385467580,-1702.0,0.00013535,2]
[338207144,1726385467590,-500.0,0.00013535,2]
[338207145,1726385467601,-500.0,0.00013535,2]
[338207146,1726385467611,-837.44,0.00013535,2]
[338207147,1726385467622,-1388.33,0.00013535,2]
[338207148,1726385467632,-1061.16,0.00013535,2]
[338207149,1726385467643,-1492.95,0.00013535,2]
[338207150,1726385467654,-736.8,0.00013535,2]
[338207151,1726385467664,-500.0,0.00013535,2]
[338207152,1726385467674,-500.0,0.00013535,2]
[338207153,1726385467685,-1375.53,0.00013535,2]
[338207154,1726385467695,-500.0,0.00013535,2]
[338207155,1726385467706,-643.11,0.00013535,2]
[338207156,1726385467716,-713.53,0.00013535,2]
[338207157,1726385467726,-753.18,0.00013535,2]
[338207158,1726385467737,-500.0,0.00013535,2]
[338207159,1726385467747,-611.67,0.00013535,2]
[338207160,1726385467759,-1330.49,0.00013535,2]
[338207161,1726385467768,-809.5,0.00013535,2]
[338207162,1726385467779,-689.02,0.00013535,2]
[338207163,1726385467789,-1278.36,0.00013535,2]
[338207164,1726385467799,-1345.68,0.00013535,2]
[338207165,1726385467809,-676.31,0.00013535,2]
[338207166,1726385467819,-500.0,0.00013535,2]
[338207167,1726385467829,-1089.1,0.00013535,2]
[338207168,1726385467839,-500.0,0.00013535,2]
[338207169,1726385467849,-1254.98,0.00013535,2]
[338207170,1726385467859,-500.0,0.00013535,2]
[338207171,1726385467869,-688.9,0.00013535,2]
[338207172,1726385467879,-817.26,0.00013535,2]
[338207173,1726385467889,-876.06,0.00013535,2]
[338207174,1726385467899,-1799.33,0.00013535,2]
[338207175,1726385467909,-1127.02,0.00013535,2]
[338207176,1726385467919,-288.25005198,0.00013535,2]
[338207177,1726385468445,-500.0,0.00012785,2]
[338207178,1726385468456,-422.56994802,0.00013535,2]
[338207179,1726385468467,-2049.23,0.00013535,2]
[338207180,1726385468710,-686.15,0.00013535,2]
[338207181,1726385468721,-500.0,0.00013535,2]
[338207182,1726385468731,-2723.01,0.00013535,2]
[338207183,1726385468740,-523.9,0.00013535,2]
[338207184,1726385468749,-500.0,0.00013535,2]
[338207185,1726385468759,-760.18,0.00013535,2]
[338207186,1726385468769,-366.62207394,0.00013535,2]
[338207187,1726385468785,-500.0,0.00012784,2]
[338207188,1726385468795,-133.37792606,0.00013535,2]
[338207189,1726385468804,-639.63,0.00013535,2]
[338207190,1726385468813,-1219.34,0.00013535,2]
[338207191,1726385468822,-689.87,0.00013535,2]
[338207192,1726385468832,-495.685352,0.00013535,2]
[338207193,1726385468843,-893.324648,0.00013535,2]
[338207194,1726385468853,-500.0,0.00013535,2]
[338207195,1726385468862,-220.16402976,0.00013535,2]
[338207196,1726385468874,-279.83597024,0.00013535,2]
[338207197,1726385468884,-567.76,0.00013535,2]
[338207198,1726385468894,-123.1482333,0.00013535,2]
[338207199,1726385468908,-353.68141749,0.00013535,2]
[338207200,1726385468919,-536.41034921,0.00013535,2]
[338207201,1726385468929,-37.01978844,0.00013535,2]
[338207202,1726385468942,-1759.14021156,0.00013535,2]
[338207203,1726385468951,-696.02175961,0.00013535,2]
[338207204,1726385468970,-500.0,0.00012785,2]
[338207205,1726385535246,200.0,0.00012456,2]
[338207206,1726385569034,250.0,0.00012449,2]
[338207207,1726385693890,21683.64,0.00012361,2]
[338207208,1726385695441,323.28,0.00010443,2]
[338207209,1726385711881,250.0,0.00012322,2]
[338207210,1726385753191,1000.0,0.00012245,2]
[338207211,1726385861796,165.91,0.00012226,2]
[338207212,1726385879448,182.87002286,0.00012607,2]
[338207213,1726385959271,6156.0,0.000101,5]
[338207214,1726386013764,603.48,0.00012155,2]
[338207215,1726386229569,250.0,0.00012039,2]
[338207216,1726386298927,200.0,0.00012011,2]
[338207217,1726386401642,488.52,0.00012029,2]
[338207221,1726386431431,400.0,0.000126,4]
[338207241,1726386448387,355.08,0.00010046,2]
[338207242,1726386448831,355.08,0.0001231,2]
[338207247,1726386538712,614.98,0.0001264,2]
[338207249,1726386582125,301.74,0.00011971,2]
[338207254,1726386632068,-1530.95158963,0.00012683,2]
[338207255,1726386632078,-1000.0,0.00012684,2]
[338207256,1726386632088,-800.0,0.000127,4]
[338207257,1726386632097,-205.94,0.00012711,2]
[338207258,1726386632107,-150.0,0.0001274,2]
[338207259,1726386632116,-269.07553365,0.00012773,2]
[338207260,1726386632128,-230.92446635,0.00012773,2]
[338207261,1726386632139,-151.12,0.00012774,2]
[338207262,1726386632148,-151.12,0.00012774,2]
[338207263,1726386632157,-300.0,0.00012781,2]
[338207264,1726386632167,-150.0,0.00012782,2]
[338207265,1726386632177,-2113.01,0.00012782,2]
[338207266,1726386632187,-2238.96,0.00012782,2]
[338207267,1726386632197,-2019.7,0.00012782,2]
[338207269,1726386632206,-586.83,0.00012782,2]
[338207271,1726386632216,-3124.91,0.00012782,2]
[338207272,1726386632226,-968.98,0.00012782,2]
[338207273,1726386632236,-2456.08,0.00012782,2]
[338207274,1726386632245,-1949.11,0.00012782,2]
[338207276,1726386632254,-1848.91,0.00012782,2]
[338207277,1726386632264,-917.89107688,0.00012782,2]
[338207280,1726386632276,-1382.78807392,0.00012782,2]
[338207283,1726386632296,-860.06877526,0.00012782,2]
[338207284,1726386632307,-874.53029453,0.00012782,2]
[338207285,1726386632318,-3494.76952503,0.00012782,2]
[338207286,1726386632334,-27.00225438,0.00012782,2]
[338207287,1726386632343,-1575.76688751,0.00012782,2]
[338207288,1726386632355,-1075.9549519,0.00012782,2]
[338207289,1726386632367,-841.67816059,0.00012782,2]
[338207290,1726386632377,-2992.82,0.00012782,2]
[338207291,1726386632387,-1810.15048639,0.00012782,2]
[338207292,1726386632398,-171.01951361,0.00012782,2]
[338207293,1726386632408,-380.94048639,0.00012782,2]
[338207294,1726386632531,-1517.42729465,0.00012782,2]
[338207295,1726386632542,-439.35,0.00012782,2]
[338207296,1726386632578,-1879.8522855,0.00012782,2]
[338207297,1726386632589,-906.36940833,0.00012782,2]
[338207298,1726386632601,-268.07010932,0.00012782,2]
[338207299,1726386632612,-1378.29577402,0.00012782,2]
[338207300,1726386632624,-277.50880542,0.00012782,2]
[338207301,1726386632636,-939.82724979,0.00012782,2]
[338207302,1726386632648,-473.00368925,0.00012782,2]
[338207303,1726386632670,-3804.41474252,0.00012782,2]
[338207304,1726386632683,-2968.11,0.00012782,2]
[338207305,1726386632694,-622.0,0.00012782,2]
[338207306,1726386635384,157.41,0.00010959,2]
[338207308,1726386637997,-351.92,0.00012782,2]
[338207309,1726386638038,-698.46349581,0.00012782,2]
[338207310,1726386638050,-3043.16324044,0.00012782,2]
[338207311,1726386638062,-582.24356216,0.00012782,2]
[338207312,1726386638073,-744.74833634,0.00012782,2]
[338207313,1726386638088,-423.10202108,0.00012782,2]
[338207314,1726386638100,-2142.30949898,0.00012782,2]
[338207315,1726386638109,-2109.44,0.00012782,2]
[338207316,1726386638118,-1429.35,0.00012782,2]
[338207317,1726386638128,-1380.26,0.00012782,2]
[338207318,1726386638137,-807.33,0.00012782,2]
[338207319,1726386638147,-673.25,0.00012782,2]
[338207320,1726386638156,-1456.37,0.00012782,2]
[338207321,1726386638166,-927.79,0.00012782,2]
[338207322,1726386638175,-1084.0,0.00012782,2]
[338207323,1726386638185,-1156.39,0.00012782,2]
[338207324,1726386638194,-1829.98,0.00012783,2]
[338207325,1726386638203,-500.0,0.00012783,2]
[338207326,1726386638213,-1618.9,0.00012783,2]
[338207327,1726386638222,-500.0,0.00012783,2]
[338207328,1726386638232,-500.0,0.00012783,2]
[338207329,1726386638241,-2412.16,0.00012783,2]
[338207330,1726386638251,-252.74107327,0.00012783,2]
[338207331,1726386638260,-902.27,0.00012783,2]
[338207332,1726386638270,-1114.81,0.00012783,2]
[338207333,1726386638279,-590.87,0.00012783,2]
[338207334,1726386638288,-1291.36,0.00012783,2]
[338207336,1726386638297,-3078.06,0.00012783,2]
[338207338,1726386638307,-1805.22,0.00012783,2]
[338207340,1726386638316,-1393.41,0.00012783,2]
[338207341,1726386638326,-619.5,0.00012783,2]
[338207343,1726386638335,-1836.24,0.00012783,2]
[338207345,1726386638344,-500.0,0.00012783,2]
[338207347,1726386638353,-1437.52,0.00012783,2]
[338207349,1726386638362,-748.26,0.00012783,2]
[338207351,1726386638371,-1080.77,0.00012783,2]
[338207353,1726386638381,-515.37,0.00012783,2]
[338207355,1726386638390,-752.33,0.00012783,2]
[338207357,1726386638400,-618.21,0.00012783,2]
[338207359,1726386638410,-579.73,0.00012783,2]
[338207361,1726386638422,-1002.53,0.00012783,2]
[338207363,1726386638432,-500.0,0.00012783,2]
[338207366,1726386638441,-515.5,0.00012783,2]
[338207367,1726386638451,-1779.54,0.00012783,2]
[338207369,1726386638460,-651.76,0.00012783,2]
[338207371,1726386638470,-1776.68,0.00012783,2]
[338207373,1726386638479,-500.0,0.00012783,2]
[338207375,1726386638488,-500.0,0.00012783,2]
[338207377,1726386638497,-500.0,0.00012783,2]
[338207379,1726386638508,-2137.83,0.00012783,2]
[338207381,1726386638517,-1091.66,0.00012783,2]
[338207383,1726386638529,-968.62729075,0.00012783,2]
[338207387,1726386638552,-1319.73270925,0.00012783,2]
[338207389,1726386638562,-233.69249075,0.00012783,2]
[338207391,1726386638577,-266.30750925,0.00012783,2]
[338207393,1726386638586,-1983.39,0.00012783,2]
[338207395,1726386638595,-500.0,0.00012783,2]
[338207397,1726386638604,-589.98,0.00012783,2]
[338207399,1726386638614,-500.0,0.00012783,2]
[338207401,1726386638625,-373.0403943,0.00012783,2]
[338207403,1726386638636,-500.0,0.00012783,2]
[338207405,1726386638647,-500.0,0.00012783,2]
[338207407,1726386638657,-646.3,0.00012783,2]
[338207409,1726386638666,-1737.71890087,0.00012783,2]
[338207412,1726386638681,-4.05109913,0.00012783,2]
[338207414,1726386638691,-938.18,0.00012783,2]
[338207415,1726386638700,-528.66,0.00012783,2]
[338207417,1726386638709,-1133.43,0.00012783,2]
[338207419,1726386638719,-1044.98,0.00012783,2]
[338207421,1726386638729,-2653.92,0.00012783,2]
[338207423,1726386638739,-2096.53,0.00012783,2]
[338207425,1726386638748,-1005.33,0.00012783,2]
[338207427,1726386638757,-1243.03,0.00012783,2]
[338207429,1726386638766,-1748.44,0.00012783,2]
[338207431,1726386638776,-1177.2,0.00012783,2]
[338207433,1726386638785,-731.09,0.00012783,2]
[338207435,1726386638794,-1761.9,0.00012783,2]
[338207437,1726386638802,-1713.17,0.00012783,2]
[338207438,1726386638811,-500.0,0.00012783,2]
[338207441,1726386638822,-1325.82,0.00012783,2]
[338207443,1726386638831,-1492.55,0.00012783,2]
[338207444,1726386638841,-500.0,0.00012783,2]
[338207446,1726386638850,-500.0,0.00012783,2]
[338207448,1726386638860,-653.79,0.00012783,2]
[338207450,1726386638869,-906.63,0.00012783,2]
[338207452,1726386638878,-1834.83,0.00012783,2]
[338207454,1726386638888,-500.0,0.00012783,2]
[338207456,1726386638897,-783.83,0.00012783,2]
[338207458,1726386638907,-500.0,0.00012783,2]
[338207460,1726386638916,-3300.32490087,0.00012783,2]
[338207463,1726386638933,-34392.52509913,0.00012783,2]
[338207465,1726386638942,-1233.5,0.00012783,2]
[338207467,1726386638951,-500.0,0.00012783,2]
[338207469,1726386638961,-500.0,0.00012783,2]
[338207471,1726386638971,-1026.37,0.00012783,2]
[338207473,1726386638981,-2744.15,0.00012783,2]
[338207475,1726386638990,-2296.47,0.00012783,2]
[338207477,1726386638999,-500.0,0.00012783,2]
[338207479,1726386639009,-793.21,0.00012783,2]
[338207481,1726386639019,-528.17,0.00012783,2]
[338207483,1726386639029,-731.12,0.00012783,2]
[338207485,1726386639038,-3505.49,0.00012783,2]
[338207487,1726386639047,-500.0,0.00012783,2]
[338207489,1726386639057,-1451.47,0.00012783,2]
[338207491,1726386639066,-1113.36,0.00012783,2]
[338207493,1726386639076,-500.0,0.00012783,2]
[338207495,1726386639085,-1469.02,0.00012783,2]
[338207497,1726386639094,-5674.86,0.00012783,2]
[338207498,1726386639103,-1895.66,0.00012783,2]
[338207500,1726386639113,-1123.21,0.00012783,2]
[338207502,1726386639122,-500.0,0.00012783,2]
[338207504,1726386639132,-6306.86,0.00012783,2]
[338207506,1726386639141,-500.0,0.00012783,2]
[338207508,1726386639151,-941.47,0.00012783,2]
[338207510,1726386639160,-687.97,0.00012783,2]
[338207512,1726386639170,-526.39,0.00012783,2]
[338207514,1726386639179,-1613.22,0.00012783,2]
[338207516,1726386639189,-1288.28,0.00012783,2]
[338207518,1726386639198,-500.0,0.00012783,2]
[338207520,1726386639207,-1324.08,0.00012783,2]
[338207522,1726386639216,-500.0,0.00012783,2]
[338207524,1726386639225,-755.08,0.00012783,2]
[338207526,1726386639233,-2206.36,0.00012783,2]
[338207527,1726386639243,-5253.79,0.00012783,2]
[338207529,1726386639251,-633.9,0.00012783,2]
[338207531,1726386639261,-500.0,0.00012783,2]
[338207533,1726386639270,-500.0,0.00012783,2]
[338207535,1726386639279,-500.0,0.00012783,2]
[338207537,1726386639288,-500.0,0.00012783,2]
[338207539,1726386639297,-1836.18,0.00012783,2]
[338207541,1726386639307,-500.0,0.00012783,2]
[338207543,1726386639316,-500.0,0.00012783,2]
[338207545,1726386639325,-500.0,0.00012783,2]
[338207547,1726386639334,-500.0,0.00012783,2]
[338207549,1726386639344,-500.0,0.00012783,2]
[338207551,1726386639353,-500.0,0.00012783,2]
[338207553,1726386639363,-1195.24,0.00012783,2]
[338207555,1726386639372,-2066.23,0.00012783,2]
[338207557,1726386639381,-5265.45,0.00012783,2]
[338207559,1726386639390,-427.2436629,0.00012783,2]
[338207561,1726386639400,-500.0,0.00012783,2]
[338207562,1726386639409,-1198.34,0.00012783,2]
[338207563,1726386639419,-500.0,0.00012783,2]
[338207564,1726386639429,-1494.33,0.00012783,2]
[338207565,1726386639438,-1070.63,0.00012783,2]
[338207566,1726386639447,-625.13,0.00012783,2]
[338207568,1726386639456,-500.0,0.00012783,2]
[338207570,1726386639466,-577.47,0.00012783,2]
[338207572,1726386639475,-500.0,0.00012783,2]
[338207574,1726386639490,-1259.12,0.00012783,2]
[338207576,1726386639499,-898.73,0.00012783,2]
[338207578,1726386639508,-287.66302958,0.00012783,2]
[338207580,1726386639517,-500.0,0.00012783,2]
[338207582,1726386639526,-500.0,0.00012783,2]
[338207583,1726386639536,-2158.21,0.00012783,2]
[338207585,1726386639545,-1377.51,0.00012783,2]
[338207587,1726386639555,-2187.18,0.00012783,2]
[338207589,1726386639564,-500.0,0.00012783,2]
[338207592,1726386639576,-1790.42,0.00012783,2]
[338207593,1726386639585,-500.0,0.00012783,2]
[338207596,1726386639595,-3866.89,0.00012783,2]
[338207598,1726386639605,-500.0,0.00012783,2]
[338207599,1726386639613,-1154.78,0.00012783,2]
[338207602,1726386639624,-509.68,0.00012783,2]
[338207604,1726386639633,-809.72,0.00012783,2]
[338207605,1726386639642,-1899.94,0.00012783,2]
[338207607,1726386639652,-500.0,0.00012783,2]
[338207610,1726386639662,-1753.97,0.00012783,2]
[338207612,1726386639672,-533.25,0.00012783,2]
[338207613,1726386639681,-500.0,0.00012783,2]
[338207615,1726386639690,-747.56,0.00012783,2]
[338207617,1726386639700,-1324.16,0.00012783,2]
[338207619,1726386639709,-500.0,0.00012783,2]
[338207621,1726386639718,-2065.81,0.00012783,2]
[338207623,1726386639727,-838.03,0.00012783,2]
[338207625,1726386639736,-3817.83,0.00012783,2]
[338207627,1726386639745,-1091.04,0.00012783,2]
[338207629,1726386639754,-510.03,0.00012783,2]
[338207631,1726386639763,-354.60386538,0.00012783,2]
[338207633,1726386639772,-7177.3,0.00012783,2]
[338207635,1726386639781,-500.0,0.00012783,2]
[338207637,1726386639790,-500.0,0.00012783,2]
[338207639,1726386639799,-616.51,0.00012783,2]
[338207641,1726386639808,-2748.05,0.00012783,2]
[338207643,1726386639817,-1033.18,0.00012783,2]
[338207645,1726386639826,-606.95,0.00012783,2]
[338207647,1726386639835,-500.0,0.00012783,2]
[338207649,1726386639844,-500.0,0.00012783,2]
[338207651,1726386639854,-3584.94,0.00012783,2]
[338207653,1726386639863,-3719.36,0.00012783,2]
[338207655,1726386639872,-718.46,0.00012783,2]
[338207657,1726386639881,-500.0,0.00012783,2]
[338207659,1726386639890,-500.0,0.00012783,2]
[338207660,1726386639899,-500.0,0.00012783,2]
[338207662,1726386639909,-500.0,0.00012783,2]
[338207664,1726386639918,-500.0,0.00012783,2]
[338207666,1726386639927,-6552.93,0.00012783,2]
[338207668,1726386639936,-500.0,0.00012783,2]
[338207670,1726386639945,-2287.8,0.00012783,2]
[338207672,1726386639954,-1885.49,0.00012783,2]
[338207674,1726386639963,-500.0,0.00012783,2]
[338207676,1726386639974,-2590.47,0.00012783,2]
[338207678,1726386639983,-500.0,0.00012783,2]
[338207680,1726386639992,-2059.56,0.00012783,2]
[338207682,1726386640001,-2663.67,0.00012783,2]
[338207684,1726386640010,-831.17,0.00012783,2]
[338207686,1726386640019,-775.53,0.00012783,2]
[338207688,1726386640028,-11999.75,0.00012783,2]
[338207690,1726386640037,-2667.45,0.00012783,2]
[338207692,1726386640046,-500.0,0.00012783,2]
[338207694,1726386640056,-500.0,0.00012783,2]
[338207696,1726386640065,-8752.31,0.00012783,2]
[338207698,1726386640074,-1008.39,0.00012783,2]
[338207700,1726386640084,-3162.56,0.00012783,2]
[338207702,1726386640093,-500.0,0.00012783,2]
[338207704,1726386640102,-500.0,0.00012783,2]
[338207706,1726386640112,-500.0,0.00012783,2]
[338207708,1726386640121,-500.0,0.00012783,2]
[338207709,1726386640130,-1792.48,0.00012783,2]
[338207710,1726386640139,-8994.6,0.00012783,2]
[338207711,1726386640150,-38442.91,0.00012783,2]
[338207712,1726386640159,-538.29,0.00012783,2]
[338207713,1726386640169,-500.0,0.00012783,2]
[338207714,1726386640178,-500.0,0.00012783,2]
[338207715,1726386640187,-3192.74,0.00012783,2]
[338207716,1726386640197,-961.96,0.00012783,2]
[338207717,1726386640207,-2222.79,0.00012783,2]
[338207718,1726386640216,-500.0,0.00012783,2]
[338207719,1726386640225,-500.0,0.00012783,2]
[338207720,1726386640235,-1669.12,0.00012783,2]
[338207721,1726386640245,-500.0,0.00012783,2]
[338207722,1726386640255,-761.1,0.00012783,2]
[338207723,1726386640266,-1021.7,0.00012783,2]
[338207724,1726386640275,-2565.54,0.00012783,2]
[338207725,1726386640284,-2538.68,0.00012783,2]
[338207726,1726386640293,-3498.66,0.00012783,2]
[338207727,1726386640303,-4772.15,0.00012783,2]
[338207728,1726386640312,-500.0,0.00012783,2]
[338207729,1726386640321,-1063.36,0.00012783,2]
[338207731,1726386640331,-636.46,0.00012783,2]
[338207732,1726386640340,-1130.26,0.00012783,2]
[338207734,1726386640350,-637.0,0.00012783,2]
[338207736,1726386640360,-1957.62,0.00012783,2]
[338207738,1726386640370,-500.0,0.00012784,2]
[338207740,1726386640379,-190.73144646,0.00012784,2]
[338207742,1726386640389,-1036.95,0.00012784,2]
[338207744,1726386640398,-969.32,0.00012784,2]
[338207746,1726386640407,-576.29,0.00012784,2]
[338207748,1726386640417,-500.0,0.00012784,2]
[338207749,1726386640426,-500.0,0.00012784,2]
[338207751,1726386640435,-502.30261039,0.00012784,2]
[338207753,1726386640445,-500.0,0.00012784,2]
[338207755,1726386640455,-500.0,0.00012784,2]
[338207757,1726386640464,-500.0,0.00012784,2]
[338207759,1726386640474,-500.0,0.00012784,2]
[338207761,1726386640483,-500.0,0.00012784,2]
[338207763,1726386640493,-500.66,0.00012784,2]
[338207765,1726386640503,-500.0,0.00012784,2]
[338207766,1726386640512,-500.0,0.00012784,2]
[338207767,1726386640522,-500.0,0.00012784,2]
[338207768,1726386640532,-273.29219263,0.00012784,2]
[338207769,1726386640542,-626.92,0.00012784,2]
[338207770,1726386640551,-929.36,0.00012784,2]
[338207771,1726386640562,-633.96,0.00012784,2]
[338207772,1726386640575,-500.0,0.00012784,2]
[338207773,1726386640584,-503.57,0.00012784,2]
[338207774,1726386640594,-829.2,0.00012784,2]
[338207775,1726386640603,-500.0,0.00012784,2]
[338207776,1726386640613,-500.0,0.00012784,2]
[338207777,1726386640623,-891.82,0.00012784,2]
[338207778,1726386640633,-919.28,0.00012784,2]
[338207779,1726386640643,-520.65,0.00012784,2]
[338207780,1726386640652,-500.0,0.00012784,2]
[338207781,1726386640663,-1127.16,0.00012784,2]
[338207782,1726386640673,-500.0,0.00012784,2]
[338207783,1726386640683,-500.0,0.00012784,2]
[338207784,1726386640693,-811.79,0.00012784,2]
[338207785,1726386640702,-1430.93,0.00012784,2]
[338207786,1726386640711,-500.0,0.00012784,2]
[338207787,1726386640721,-518.92,0.00012784,2]
[338207789,1726386640731,-502.28178834,0.00012784,2]
[338207791,1726386640740,-500.0,0.00012784,2]
[338207793,1726386640750,-500.0,0.00012784,2]
[338207795,1726386640759,-619.57,0.00012784,2]
[338207797,1726386640769,-500.0,0.00012784,2]
[338207799,1726386640778,-500.0,0.00012784,2]
[338207801,1726386640788,-1437.76,0.00012784,2]
[338207803,1726386640798,-500.0,0.00012784,2]
[338207805,1726386640808,-500.0,0.00012784,2]
[338207807,1726386640818,-166.6216185,0.00012784,2]
[338207808,1726386640828,-500.0,0.00012784,2]
[338207810,1726386640837,-929.12,0.00012784,2]
[338207812,1726386640847,-500.0,0.00012784,2]
[338207814,1726386640856,-3127.64,0.00012784,2]
[338207816,1726386640866,-500.0,0.00012784,2]
[338207818,1726386640875,-265.28709455,0.00012784,2]
[338207820,1726386640886,-1380.36,0.00012784,2]
[338207822,1726386640895,-500.0,0.00012784,2]
[338207824,1726386640905,-500.0,0.00012784,2]
[338207826,1726386640914,-500.0,0.00012784,2]
[338207828,1726386640924,-500.0,0.00012784,2]
[338207830,1726386640933,-500.0,0.00012784,2]
[338207832,1726386640943,-500.0,0.00012784,2]
[338207834,1726386640953,-2704.61,0.00012784,2]
[338207836,1726386640963,-963.73,0.00012784,2]
[338207838,1726386640974,-500.0,0.00012784,2]
[338207840,1726386640983,-500.0,0.00012784,2]
[338207842,1726386640992,-500.0,0.00012784,2]
[338207844,1726386641002,-500.0,0.00012784,2]
[338207846,1726386641012,-1179.51,0.00012784,2]
[338207848,1726386641022,-500.0,0.00012784,2]
[338207850,1726386641033,-500.0,0.00012784,2]
[338207852,1726386641043,-1009.7,0.00012784,2]
[338207854,1726386641052,-590.02,0.00012784,2]
[338207856,1726386641062,-834.68,0.00012784,2]
[338207858,1726386641072,-667.68,0.00012784,2]
[338207860,1726386641082,-2005.99,0.00012784,2]
[338207862,1726386641091,-908.12,0.00012784,2]
[338207864,1726386641100,-1923.49,0.00012784,2]
[338207866,1726386641110,-2050.36,0.00012784,2]
[338207868,1726386641119,-1528.57,0.00012784,2]
[338207870,1726386641128,-500.0,0.00012784,2]
[338207872,1726386641137,-989.82,0.00012784,2]
[338207874,1726386641147,-1331.9,0.00012784,2]
[338207876,1726386641156,-1908.56,0.00012784,2]
[338207878,1726386641167,-1368.73,0.00012784,2]
[338207880,1726386641182,-500.0,0.00012784,2]
[338207882,1726386641191,-648.5,0.00012784,2]
[338207884,1726386641201,-500.0,0.00012784,2]
[338207886,1726386641211,-548.36,0.00012784,2]
[338207889,1726386641222,-500.0,0.00012784,2]
[338207890,1726386641232,-500.0,0.00012784,2]
[338207892,1726386641242,-1050.22,0.00012784,2]